[Event "MČR juniorů a juniorek v rapid šachu 2024"]
[Site "Hotel Fit Fun, Harrachov, Czech Republic"]
[Date "2024.09.21"]
[Round "5.36"]
[White "Tichy Richard"]
[Black "Taborska Aneta"]
[Result "1/2-1/2"]
[TimeControl "20+5"]
[WhiteFideId "23727063"]
[BlackFideId "23733039"]
[WhiteElo "1698"]
[BlackElo "1582"]

1. Nf3 {[%clk 00:20:06]} {[%emt 00:00:03]} Nf6 {[%clk 00:20:09]} {[%emt
00:00:01]} 2. d4 {[%clk 00:20:09]} {[%emt 00:00:02]} g6 {[%clk 00:20:13]}
{[%emt 00:00:02]} 3. c4 {[%clk 00:20:12]} {[%emt 00:00:03]} Bg7 {[%clk
00:20:16]} 4. g3 {[%clk 00:20:15]} {[%emt 00:00:02]} O-O {[%clk 00:20:19]}
{[%emt 00:00:02]} 5. Bg2 {[%clk 00:20:19]} {[%emt 00:00:02]} d6 {[%clk
00:20:22]} {[%emt 00:00:02]} 6. Nc3 {[%clk 00:20:23]} {[%emt 00:00:02]} Nbd7
{[%clk 00:20:19]} {[%emt 00:00:06]} 7. O-O {[%clk 00:20:25]} {[%emt 00:00:03]}
Re8 {[%clk 00:20:23]} {[%emt 00:00:01]} 8. e4 {[%clk 00:20:21]} c6 {[%clk
00:20:02]} {[%emt 00:00:35]} 9. Bf4 {[%emt 00:00:21]} e5 {[%clk 00:19:44]}
{[%emt 00:00:19]} 10. dxe5 {[%clk 00:20:10]} {[%emt 00:00:04]} dxe5 {[%clk
00:19:17]} {[%emt 00:00:32]} 11. Bg5 {[%clk 00:19:38]} {[%emt 00:00:37]} Qb6
{[%clk 00:18:35]} {[%emt 00:00:44]} 12. Na4 {[%clk 00:19:30]} {[%emt 00:00:16]}
Qb4 {[%clk 00:18:03]} {[%emt 00:00:33]} 13. b3 {[%clk 00:19:26]} {[%emt
00:00:14]} Nxe4 {[%clk 00:17:50]} {[%emt 00:00:17]} 14. Bd2 {[%clk 00:17:31]}
{[%emt 00:02:00]} Qe7 {[%clk 00:17:17]} {[%emt 00:00:36]} 15. Re1 {[%clk
00:17:00]} {[%emt 00:00:38]} Nxd2 {[%clk 00:16:55]} {[%emt 00:00:28]} 16. Qxd2
{[%clk 00:16:58]} {[%emt 00:00:06]} e4 {[%clk 00:16:53]} {[%emt 00:00:06]} 17.
Ng5 {[%clk 00:16:42]} {[%emt 00:00:22]} Bxa1 {[%clk 00:16:14]} {[%emt
00:00:44]} 18. Rxa1 {[%clk 00:15:05]} {[%emt 00:01:42]} Qf6 {[%clk 00:16:08]}
{[%emt 00:00:09]} 19. Re1 {[%clk 00:14:49]} {[%emt 00:00:24]} Re5 {[%clk
00:11:45]} {[%emt 00:04:22]} 20. Nxe4 {[%clk 00:14:01]} {[%emt 00:00:58]} Qe7
{[%clk 00:10:33]} {[%emt 00:01:09]} 21. Qh6 {[%clk 00:13:17]} {[%emt 00:00:57]}
Nf6 {[%clk 00:08:46]} {[%emt 00:01:46]} 22. Qf4 {[%clk 00:12:45]} {[%emt
00:00:42]} Nxe4 {[%clk 00:07:35]} {[%emt 00:01:17]} 23. Rxe4 {[%clk 00:12:18]}
{[%emt 00:00:33]} Rxe4 {[%clk 00:07:07]} {[%emt 00:00:32]} 24. Bxe4 {[%clk
00:12:13]} {[%emt 00:00:10]} Be6 {[%clk 00:06:49]} {[%emt 00:00:22]} 25. Nc3
{[%clk 00:11:43]} {[%emt 00:00:36]} Qb4 {[%clk 00:04:50]} {[%emt 00:02:03]} 26.
Qd2 {[%clk 00:11:27]} {[%emt 00:00:22]} Re8 {[%clk 00:03:50]} {[%emt 00:01:03]}
27. f3 {[%clk 00:11:03]} {[%emt 00:00:30]} Qc5+ {[%clk 00:03:20]} {[%emt
00:00:34]} 28. Kg2 {[%clk 00:10:09]} {[%emt 00:01:00]} f5 {[%clk 00:01:42]}
{[%emt 00:01:44]} 29. Bc2 {[%clk 00:09:39]} {[%emt 00:00:34]} Bf7 {[%clk
00:01:06]} {[%emt 00:00:34]} 30. Nd1 {[%clk 00:09:13]} {[%emt 00:00:38]} Qe5
{[%clk 00:01:03]} {[%emt 00:00:06]} 31. Kf2 {[%clk 00:08:59]} {[%emt 00:00:22]}
Re6 {[%clk 00:00:42]} {[%emt 00:00:24]} 32. Ne3 {[%clk 00:08:44]} {[%emt
00:00:22]} Rd6 {[%clk 00:00:45]} {[%emt 00:00:02]} 33. Bd3 {[%clk 00:08:32]}
{[%emt 00:00:17]} Qd4 {[%clk 00:00:44]} {[%emt 00:00:04]} 34. Ke2 {[%clk
00:08:20]} {[%emt 00:00:19]} Be6 {[%clk 00:00:18]} {[%emt 00:00:32]} 35. f4
{[%clk 00:08:20]} {[%emt 00:00:05]} Kg7 {[%clk 00:00:20]} {[%emt 00:00:03]} 36.
h3 {[%clk 00:08:17]} {[%emt 00:00:07]} Kf6 {[%clk 00:00:23]} {[%emt 00:00:01]}
37. a4 {[%clk 00:08:13]} {[%emt 00:00:10]} h6 {[%clk 00:00:24]} {[%emt
00:00:04]} 38. a5 {[%clk 00:08:13]} {[%emt 00:00:05]} a6 {[%clk 00:00:28]}
{[%emt 00:00:01]} 39. b4 {[%clk 00:08:01]} {[%emt 00:00:17]} g5 {[%clk
00:00:32]} 40. c5 {[%clk 00:07:55]} {[%emt 00:00:12]} Rd8 {[%clk 00:00:34]}
{[%emt 00:00:03]} 41. fxg5+ {[%clk 00:06:45]} {[%emt 00:01:14]} hxg5 {[%clk
00:00:34]} {[%emt 00:00:06]} 42. g4 {[%clk 00:06:38]} {[%emt 00:00:12]} f4
{[%clk 00:00:36]} {[%emt 00:00:03]} 43. Nf5 {[%clk 00:05:58]} {[%emt 00:00:45]}
Qe5+ {[%clk 00:00:21]} {[%emt 00:00:17]} 44. Kf3 {[%clk 00:06:00]} {[%emt
00:00:04]} Bd5+ {[%clk 00:00:23]} {[%emt 00:00:04]} 45. Kf2 {[%clk 00:05:43]}
{[%emt 00:00:21]} Re8 {[%clk 00:00:19]} {[%emt 00:00:11]} 46. b5 {[%clk
00:05:37]} {[%emt 00:00:11]} cxb5 {[%emt 00:00:21]} 47. h4 {[%clk 00:05:30]}
{[%emt 00:00:09]} Be4 {[%clk 00:00:10]} 48. Bxe4 {[%clk 00:05:36]} {[%emt
00:00:04]} Qxe4 {[%clk 00:00:19]} {[%emt 00:00:02]} 49. h5 {[%clk 00:05:35]}
{[%emt 00:00:05]} Qe3+ {[%clk 00:00:22]} {[%emt 00:00:03]} 50. Nxe3 {[%clk
00:05:36]} {[%emt 00:00:03]} fxe3+ {[%clk 00:00:25]} {[%emt 00:00:02]} 51. Qxe3
{[%clk 00:05:38]} {[%emt 00:00:04]} Rxe3 52. Kxe3 {[%clk 00:05:41]} Kg7 {[%clk
00:00:30]} {[%emt 00:00:02]} 53. Ke4 {[%clk 00:05:44]} {[%emt 00:00:02]} b4
{[%clk 00:00:33]} 54. Kd4 {[%clk 00:05:46]} {[%emt 00:00:03]} Kf6 {[%clk
00:00:36]} {[%emt 00:00:03]} 55. Kc4 {[%clk 00:05:45]} {[%emt 00:00:05]} Ke5
{[%clk 00:00:31]} {[%emt 00:00:06]} 56. Kxb4 {[%clk 00:05:49]} {[%emt
00:00:06]} Kf4 {[%clk 00:00:35]} 57. c6 {[%clk 00:05:42]} {[%emt 00:00:11]}
bxc6 {[%clk 00:00:35]} {[%emt 00:00:06]} 58. Kc5 {[%clk 00:05:46]} {[%emt
00:00:01]} Kxg4 {[%clk 00:00:38]} {[%emt 00:00:01]} 59. Kxc6 {[%clk 00:05:49]}
{[%emt 00:00:02]} Kxh5 {[%clk 00:00:40]} {[%emt 00:00:03]} 60. Kb6 {[%clk
00:05:53]} g4 {[%clk 00:00:44]} {[%emt 00:00:01]} 61. Kxa6 {[%clk 00:05:57]}
{[%emt 00:00:02]} g3 {[%clk 00:00:48]} {[%emt 00:00:01]} 62. Kb7 {[%clk
00:05:58]} {[%emt 00:00:02]} g2 {[%clk 00:00:50]} {[%emt 00:00:04]} 63. a6
{[%clk 00:06:02]} {[%emt 00:00:02]} g1=Q {[%clk 00:00:52]} {[%emt 00:00:02]} 64.
a7 {[%clk 00:06:05]} {[%emt 00:00:02]} Qg7+ {[%clk 00:00:39]} {[%emt 00:00:17]}
65. Kb8 {[%clk 00:06:08]} {[%emt 00:00:03]} Qxa7+ {[%clk 00:00:40]} {[%emt
00:00:05]} 66. Kxa7 {[%clk 00:06:11]} {[%emt 00:00:02]} 1/2-1/2



[ePGN "0.1;DGT LiveChess/2.2.6"]

[Event "MČR juniorů a juniorek v rapid šachu 2024"]
[Site "Hotel Fit Fun, Harrachov, Czech Republic"]
[Date "2024.09.21"]
[Round "5.4"]
[White "Mrazek Adam"]
[Black "Hak David"]
[Result "0-1"]
[TimeControl "20+5"]
[WhiteFideId "23725010"]
[BlackFideId "377007"]
[WhiteElo "1830"]
[BlackElo "2103"]

1. c4 {[%clk 00:20:07]} {[%emt 00:00:02]} g6 {[%clk 00:20:09]} {[%emt
00:00:02]} 2. g3 {[%clk 00:20:10]} {[%emt 00:00:02]} Bg7 {[%clk 00:20:11]}
{[%emt 00:00:03]} 3. Bg2 {[%clk 00:20:13]} {[%emt 00:00:02]} c5 {[%clk
00:20:11]} {[%emt 00:00:05]} 4. Nc3 {[%clk 00:20:16]} {[%emt 00:00:03]} Nc6
{[%clk 00:20:15]} 5. a3 {[%clk 00:20:16]} {[%emt 00:00:06]} d6 {[%clk
00:20:08]} {[%emt 00:00:11]} 6. Nf3 {[%clk 00:20:14]} {[%emt 00:00:07]} a5
{[%clk 00:20:11]} {[%emt 00:00:02]} 7. O-O {[%clk 00:20:12]} {[%emt 00:00:07]}
e5 {[%clk 00:19:53]} {[%emt 00:00:23]} 8. d3 {[%clk 00:20:01]} {[%emt
00:00:16]} Nge7 {[%clk 00:19:48]} {[%emt 00:00:11]} 9. Ne1 {[%clk 00:19:08]}
{[%emt 00:00:58]} Be6 {[%clk 00:19:31]} {[%emt 00:00:21]} 10. Nd5 {[%clk
00:18:02]} {[%emt 00:01:12]} O-O {[%clk 00:18:18]} {[%emt 00:01:18]} 11. Bg5
{[%clk 00:17:32]} {[%emt 00:00:36]} f6 {[%clk 00:18:06]} {[%emt 00:00:16]} 12.
Bd2 {[%clk 00:17:35]} {[%emt 00:00:02]} Rb8 {[%clk 00:17:26]} {[%emt 00:00:45]}
13. Nc2 {[%clk 00:16:20]} {[%emt 00:01:20]} f5 {[%clk 00:16:48]} {[%emt
00:00:43]} 14. Rb1 {[%clk 00:14:33]} {[%emt 00:01:53]} b5 {[%clk 00:16:41]}
{[%emt 00:00:11]} 15. b3 {[%clk 00:13:11]} {[%emt 00:01:28]} Bf7 {[%clk
00:14:08]} {[%emt 00:02:37]} 16. Bg5 {[%clk 00:11:24]} {[%emt 00:01:52]} h6
{[%clk 00:13:50]} {[%emt 00:00:23]} 17. Bxe7 {[%clk 00:10:17]} {[%emt
00:01:12]} Nxe7 {[%clk 00:13:52]} {[%emt 00:00:03]} 18. Nxe7+ {[%clk 00:10:15]}
{[%emt 00:00:07]} Qxe7 {[%clk 00:13:55]} {[%emt 00:00:02]} 19. Ne3 {[%clk
00:10:19]} {[%emt 00:00:02]} Kh7 {[%clk 00:10:57]} {[%emt 00:03:02]} 20. cxb5
{[%clk 00:05:15]} {[%emt 00:05:09]} Rxb5 {[%clk 00:10:49]} {[%emt 00:00:14]} 21.
Nd5 {[%clk 00:04:52]} {[%emt 00:00:28]} Qa7 {[%clk 00:10:17]} {[%emt 00:00:36]}
22. Nc3 {[%clk 00:04:24]} {[%emt 00:00:33]} Rbb8 {[%clk 00:10:05]} {[%emt
00:00:17]} 23. Bd5 {[%clk 00:04:04]} {[%emt 00:00:25]} e4 {[%clk 00:09:06]}
{[%emt 00:01:04]} 24. Bxf7 {[%clk 00:03:27]} {[%emt 00:00:42]} Qxf7 {[%clk
00:09:07]} {[%emt 00:00:04]} 25. Qc2 {[%clk 00:03:10]} {[%emt 00:00:23]} d5
{[%clk 00:08:17]} {[%emt 00:00:54]} 26. Na4 {[%clk 00:02:25]} {[%emt 00:00:50]}
Rbc8 {[%clk 00:03:53]} {[%emt 00:04:29]} 27. dxe4 {[%clk 00:01:31]} {[%emt
00:00:59]} fxe4 {[%clk 00:03:50]} {[%emt 00:00:08]} 28. e3 {[%clk 00:01:08]}
{[%emt 00:00:28]} Qe7 {[%clk 00:02:11]} {[%emt 00:01:43]} 29. Qd2 {[%clk
00:00:24]} {[%emt 00:00:50]} d4 {[%clk 00:02:02]} {[%emt 00:00:14]} 30. Qxa5
{[%clk 00:00:23]} {[%emt 00:00:06]} dxe3 {[%clk 00:00:51]} {[%emt 00:01:16]} 31.
fxe3 {[%clk 00:00:26]} {[%emt 00:00:02]} Qg5 {[%clk 00:00:55]} 32. Qd2 {[%clk
00:00:15]} {[%emt 00:00:17]} Bd4 {[%clk 00:00:59]} {[%emt 00:00:01]} 33. Rbe1
{[%clk 00:00:11]} {[%emt 00:00:08]} Rxf1+ {[%clk 00:00:52]} {[%emt 00:00:13]}
34. Kxf1 {[%clk 00:00:15]} {[%emt 00:00:01]} Rf8+ {[%clk 00:00:55]} {[%emt
00:00:02]} 35. Kg2 {[%clk 00:00:13]} {[%emt 00:00:08]} Rf3 {[%clk 00:00:26]}
{[%emt 00:00:33]} 36. Nb6 {[%clk 00:00:15]} {[%emt 00:00:03]} Bxe3 {[%clk
00:00:09]} {[%emt 00:00:22]} 37. Qd7+ {[%clk 00:00:15]} {[%emt 00:00:04]} Kg8
{[%clk 00:00:12]} 38. Qe8+ {[%clk 00:00:09]} {[%emt 00:00:13]} Kg7 {[%clk
00:00:14]} {[%emt 00:00:03]} 39. Qd7+ {[%clk 00:00:07]} {[%emt 00:00:07]} Rf7
{[%clk 00:00:15]} {[%emt 00:00:03]} 40. Qe6 {[%clk 00:00:07]} {[%emt 00:00:06]}
Rf2+ {[%clk 00:00:13]} {[%emt 00:00:08]} 41. Kh1 {[%emt 00:00:01]} Qh5 {[%clk
00:00:13]} {[%emt 00:00:04]} 42. Qe7+ {[%clk 00:00:10]} {[%emt 00:00:06]} Rf7
{[%clk 00:00:17]} 43. Qxe4 {[%clk 00:00:10]} {[%emt 00:00:06]} Bd4 {[%clk
00:00:15]} {[%emt 00:00:07]} 44. Nc4 {[%clk 00:00:07]} {[%emt 00:00:08]} Bc3
{[%clk 00:00:16]} {[%emt 00:00:04]} 45. Rg1 {[%clk 00:00:06]} {[%emt 00:00:06]}
Rf2 {[%clk 00:00:14]} {[%emt 00:00:06]} 46. h4 {[%clk 00:00:07]} {[%emt
00:00:04]} Bd4 {[%clk 00:00:13]} {[%emt 00:00:06]} 47. Nd6 {[%clk 00:00:07]}
{[%emt 00:00:06]} Qf3+ {[%clk 00:00:11]} {[%emt 00:00:06]} 48. Qxf3 Rxf3 49.
Rc1 {[%clk 00:00:08]} {[%emt 00:00:05]} Rxb3 {[%clk 00:00:18]} {[%emt
00:00:02]} 50. Ne4 {[%clk 00:00:06]} {[%emt 00:00:06]} Be3 {[%clk 00:00:08]}
{[%emt 00:00:15]} 51. Nxc5 {[%clk 00:00:06]} {[%emt 00:00:06]} Rb5 {[%clk
00:00:08]} {[%emt 00:00:05]} 52. Re1 {[%clk 00:00:07]} {[%emt 00:00:04]} Bxc5
{[%clk 00:00:12]} {[%emt 00:00:02]} 53. a4 {[%clk 00:00:08]} {[%emt 00:00:04]}
Ra5 {[%clk 00:00:15]} 54. Ra1 {[%clk 00:00:11]} {[%emt 00:00:02]} Kf6 {[%clk
00:00:19]} {[%emt 00:00:01]} 55. Kg2 {[%clk 00:00:15]} Ke5 {[%clk 00:00:23]}
{[%emt 00:00:02]} 56. Kf3 {[%clk 00:00:19]} Kd4 {[%clk 00:00:26]} {[%emt
00:00:03]} 57. g4 {[%clk 00:00:21]} {[%emt 00:00:03]} Kc4 {[%clk 00:00:30]}
{[%emt 00:00:02]} 58. Kf4 {[%clk 00:00:20]} {[%emt 00:00:06]} Bd6 {[%clk
00:00:34]} 59. Kf3 {[%clk 00:00:23]} {[%emt 00:00:03]} Kb4 {[%clk 00:00:35]}
{[%emt 00:00:03]} 60. Ke4 {[%clk 00:00:10]} {[%emt 00:00:17]} Bg3 {[%clk
00:00:23]} {[%emt 00:00:18]} 61. Rb1+ {[%clk 00:00:14]} Kc3 {[%clk 00:00:20]}
{[%emt 00:00:06]} 62. Rc1+ {[%clk 00:00:08]} {[%emt 00:00:14]} Kd2 {[%clk
00:00:23]} {[%emt 00:00:01]} 63. Rc4 {[%clk 00:00:08]} {[%emt 00:00:05]} Bxh4
{[%clk 00:00:25]} {[%emt 00:00:02]} 64. Kf4 {[%clk 00:00:07]} {[%emt 00:00:07]}
Bg5+ {[%clk 00:00:28]} {[%emt 00:00:02]} 65. Ke4 {[%clk 00:00:10]} {[%emt
00:00:02]} Ke2 {[%clk 00:00:27]} {[%emt 00:00:06]} 66. Rc2+ {[%clk 00:00:06]}
{[%emt 00:00:10]} Bd2 {[%clk 00:00:31]} 67. Rc4 {[%clk 00:00:06]} {[%emt
00:00:04]} Kf2 {[%clk 00:00:27]} {[%emt 00:00:09]} 68. Rc2 {[%clk 00:00:06]}
{[%emt 00:00:05]} Ke2 {[%clk 00:00:21]} {[%emt 00:00:11]} 69. Ra2 {[%clk
00:00:07]} {[%emt 00:00:05]} h5 {[%clk 00:00:21]} {[%emt 00:00:04]} 70. gxh5
{[%clk 00:00:07]} {[%emt 00:00:05]} gxh5 {[%clk 00:00:25]} 71. Kd4 {[%clk
00:00:06]} {[%emt 00:00:06]} h4 {[%clk 00:00:27]} {[%emt 00:00:03]} 72. Ra1
{[%clk 00:00:06]} {[%emt 00:00:05]} h3 {[%clk 00:00:25]} {[%emt 00:00:06]} 73.
Kc4 {[%clk 00:00:07]} {[%emt 00:00:04]} h2 {[%clk 00:00:26]} {[%emt 00:00:05]}
74. Kb3 {[%clk 00:00:08]} {[%emt 00:00:04]} Rh5 {[%clk 00:00:27]} {[%emt
00:00:04]} 75. Rh1 {[%clk 00:00:07]} {[%emt 00:00:06]} Kf2 {[%clk 00:00:31]} 76.
a5 {[%clk 00:00:11]} {[%emt 00:00:02]} Bxa5 {[%clk 00:00:34]} {[%emt 00:00:02]}
0-1



[ePGN "0.1;DGT LiveChess/2.2.6"]

[Event "MČR juniorů a juniorek v rapid šachu 2024"]
[Site "Hotel Fit Fun, Harrachov, Czech Republic"]
[Date "2024.09.21"]
[Round "5.5"]
[White "Steinbauer Sebastian"]
[Black "Bartak Josef"]
[Result "1-0"]
[TimeControl "20+5"]
[WhiteFideId "399272"]
[BlackFideId "23712252"]
[WhiteElo "2062"]
[BlackElo "1902"]

1. e4 {[%clk 00:20:08]} {[%emt 00:00:02]} e5 {[%clk 00:20:09]} {[%emt
00:00:01]} 2. Nf3 {[%clk 00:20:12]} {[%emt 00:00:02]} Nc6 {[%clk 00:20:11]}
{[%emt 00:00:02]} 3. Bc4 {[%clk 00:20:16]} {[%emt 00:00:01]} Nf6 {[%clk
00:20:12]} {[%emt 00:00:04]} 4. Ng5 {[%clk 00:20:19]} {[%emt 00:00:01]} d5
{[%clk 00:20:15]} {[%emt 00:00:02]} 5. exd5 {[%clk 00:20:23]} {[%emt 00:00:02]}
Na5 {[%clk 00:20:19]} {[%emt 00:00:02]} 6. Bb5+ {[%clk 00:20:26]} Bd7 {[%clk
00:20:23]} {[%emt 00:00:01]} 7. Qe2 {[%clk 00:20:11]} {[%emt 00:00:21]} Be7
{[%clk 00:20:26]} {[%emt 00:00:01]} 8. Bxd7+ {[%clk 00:19:25]} {[%emt
00:00:51]} Qxd7 {[%clk 00:20:25]} {[%emt 00:00:05]} 9. Qxe5 {[%clk 00:19:16]}
{[%emt 00:00:15]} O-O {[%clk 00:20:12]} {[%emt 00:00:18]} 10. O-O {[%clk
00:18:45]} {[%emt 00:00:36]} Ng4 {[%clk 00:19:33]} {[%emt 00:00:44]} 11. Qg3
{[%clk 00:16:55]} {[%emt 00:01:55]} Bd6 {[%clk 00:16:44]} {[%emt 00:02:53]} 12.
f4 {[%clk 00:16:14]} {[%emt 00:00:47]} Bc5+ {[%clk 00:16:04]} {[%emt 00:00:45]}
13. Kh1 {[%clk 00:16:16]} {[%emt 00:00:02]} Rfe8 {[%clk 00:15:53]} {[%emt
00:00:16]} 14. Nh3 {[%clk 00:14:07]} {[%emt 00:02:14]} Re7 {[%clk 00:08:32]}
{[%emt 00:07:27]} 15. Nc3 {[%clk 00:13:12]} {[%emt 00:01:00]} Rae8 {[%clk
00:06:38]} {[%emt 00:01:59]} 16. b3 {[%clk 00:12:38]} {[%emt 00:00:39]} Qf5
{[%clk 00:05:38]} {[%emt 00:01:05]} 17. Bb2 {[%clk 00:10:10]} {[%emt 00:02:33]}
Bd4 {[%clk 00:02:14]} {[%emt 00:03:28]} 18. Rac1 {[%clk 00:09:22]} {[%emt
00:00:54]} h5 {[%clk 00:01:45]} {[%emt 00:00:34]} 19. Qf3 {[%clk 00:07:51]}
{[%emt 00:01:35]} b5 {[%clk 00:01:20]} {[%emt 00:00:31]} 20. Ba3 {[%clk
00:05:30]} {[%emt 00:02:27]} Rd7 {[%clk 00:00:40]} {[%emt 00:00:44]} 21. Nxb5
{[%clk 00:05:18]} {[%emt 00:00:17]} Rxd5 {[%clk 00:00:22]} {[%emt 00:00:23]} 22.
Nxc7 {[%clk 00:04:47]} {[%emt 00:00:35]} Red8 {[%clk 00:00:19]} {[%emt
00:00:09]} 23. Nxd5 {[%clk 00:04:43]} {[%emt 00:00:09]} Rxd5 {[%clk 00:00:22]}
{[%emt 00:00:02]} 24. Bb4 {[%clk 00:03:56]} {[%emt 00:00:52]} Nc6 {[%clk
00:00:15]} {[%emt 00:00:12]} 25. Bc3 {[%clk 00:03:45]} {[%emt 00:00:16]} Bb6
{[%clk 00:00:16]} {[%emt 00:00:04]} 26. Rce1 {[%clk 00:03:22]} {[%emt
00:00:27]} f6 {[%clk 00:00:20]} {[%emt 00:00:02]} 27. Qe2 {[%clk 00:03:14]}
{[%emt 00:00:12]} 1-0



[ePGN "0.1;DGT LiveChess/2.2.6"]

[Event "MČR juniorů a juniorek v rapid šachu 2024"]
[Site "Hotel Fit Fun, Harrachov, Czech Republic"]
[Date "2024.09.21"]
[Round "5.6"]
[White "Pejrimovska Viola Ruby"]
[Black "Vilimek Vit"]
[Result "1-0"]
[TimeControl "20+5"]
[WhiteFideId "23709529"]
[BlackFideId "23718218"]
[WhiteElo "1876"]
[BlackElo "2025"]

1. e4 {[%clk 00:20:09]} e6 {[%clk 00:20:08]} {[%emt 00:00:03]} 2. Nf3 {[%clk
00:20:12]} {[%emt 00:00:02]} b6 {[%clk 00:20:12]} 3. d4 {[%clk 00:20:03]}
{[%emt 00:00:15]} Bb7 {[%clk 00:20:16]} 4. Bd3 {[%emt 00:00:05]} Nf6 {[%clk
00:20:13]} {[%emt 00:00:06]} 5. Qe2 {[%clk 00:19:03]} {[%emt 00:01:06]} d5
{[%clk 00:19:58]} {[%emt 00:00:20]} 6. e5 {[%clk 00:18:48]} {[%emt 00:00:20]}
Ne4 {[%clk 00:20:01]} {[%emt 00:00:01]} 7. O-O {[%clk 00:18:21]} {[%emt
00:00:32]} Be7 {[%clk 00:19:43]} {[%emt 00:00:23]} 8. c4 {[%clk 00:16:08]}
{[%emt 00:02:18]} O-O {[%clk 00:17:31]} {[%emt 00:02:17]} 9. Nc3 {[%clk
00:15:29]} {[%emt 00:00:44]} Nxc3 {[%clk 00:17:03]} {[%emt 00:00:33]} 10. bxc3
{[%clk 00:15:31]} {[%emt 00:00:04]} Ba6 {[%clk 00:16:43]} {[%emt 00:00:26]} 11.
Qc2 {[%clk 00:13:10]} {[%emt 00:02:25]} h6 {[%clk 00:16:25]} {[%emt 00:00:23]}
12. Ne1 {[%clk 00:10:40]} {[%emt 00:02:35]} Bxc4 {[%clk 00:16:16]} {[%emt
00:00:14]} 13. Bxc4 {[%clk 00:10:42]} {[%emt 00:00:02]} dxc4 {[%clk 00:16:20]}
{[%emt 00:00:02]} 14. Qe4 {[%clk 00:10:42]} {[%emt 00:00:05]} Qd5 {[%clk
00:16:15]} {[%emt 00:00:11]} 15. Qg4 {[%clk 00:10:32]} {[%emt 00:00:15]} Kh7
{[%clk 00:15:52]} {[%emt 00:00:28]} 16. Nc2 {[%clk 00:10:21]} {[%emt 00:00:15]}
c5 {[%clk 00:13:33]} {[%emt 00:02:25]} 17. Ne3 {[%clk 00:10:15]} {[%emt
00:00:11]} Qc6 {[%clk 00:13:37]} {[%emt 00:00:01]} 18. d5 {[%clk 00:09:05]}
{[%emt 00:01:14]} Qb7 {[%clk 00:11:25]} {[%emt 00:02:17]} 19. dxe6 {[%clk
00:07:03]} {[%emt 00:02:07]} fxe6 {[%clk 00:11:23]} {[%emt 00:00:08]} 20. Qxe6
{[%clk 00:07:00]} {[%emt 00:00:08]} Qd7 {[%clk 00:11:08]} {[%emt 00:00:21]} 21.
Qxc4 {[%clk 00:06:43]} {[%emt 00:00:22]} Nc6 {[%clk 00:10:28]} {[%emt
00:00:45]} 22. e6 {[%clk 00:05:45]} {[%emt 00:01:03]} Qc7 {[%clk 00:07:34]}
{[%emt 00:03:00]} 23. Qe4+ {[%clk 00:05:48]} {[%emt 00:00:01]} Kh8 {[%clk
00:07:08]} {[%emt 00:00:31]} 24. Nd5 {[%clk 00:03:49]} {[%emt 00:02:04]} Qd6
{[%clk 00:06:58]} {[%emt 00:00:15]} 25. Bf4 {[%clk 00:03:30]} {[%emt 00:00:25]}
Qd8 {[%clk 00:06:24]} {[%emt 00:00:38]} 26. Rad1 {[%clk 00:03:32]} {[%emt
00:00:03]} Qc8 {[%clk 00:04:34]} {[%emt 00:01:55]} 27. Rd3 {[%clk 00:03:35]}
{[%emt 00:00:02]} Bf6 {[%clk 00:01:33]} {[%emt 00:03:07]} 28. Rh3 {[%clk
00:02:54]} {[%emt 00:00:46]} Kg8 {[%clk 00:01:07]} {[%emt 00:00:31]} 29. Bxh6
{[%clk 00:01:27]} {[%emt 00:01:32]} Qb7 {[%clk 00:00:17]} {[%emt 00:00:55]} 30.
Bg5 {[%clk 00:01:07]} {[%emt 00:00:24]} g6 {[%clk 00:00:12]} {[%emt 00:00:11]}
31. Qxg6+ {[%clk 00:01:01]} {[%emt 00:00:11]} Qg7 {[%clk 00:00:16]} 32. Nxf6+
{[%clk 00:01:00]} {[%emt 00:00:06]} Rxf6 {[%clk 00:00:16]} {[%emt 00:00:05]} 33.
Rh8+ {[%clk 00:00:26]} {[%emt 00:00:37]} Kxh8 {[%clk 00:00:19]} {[%emt
00:00:03]} 34. Bxf6 {[%clk 00:00:30]} {[%emt 00:00:01]} Rg8 {[%clk 00:00:23]}
{[%emt 00:00:02]} 35. Bxg7+ {[%clk 00:00:31]} {[%emt 00:00:04]} Rxg7 {[%clk
00:00:26]} {[%emt 00:00:02]} 36. Qe8+ {[%clk 00:00:34]} 1-0



[ePGN "0.1;DGT LiveChess/2.2.6"]